bitfinex-derivatives/quotes_SOLF0:USTF0_20250109
["timestamp","ask_amount","ask_price","bid_price","bid_amount"]
[1736416342931,2.6072,191.89,191.84,44.58156249]
[1736416344022,2.6072,191.89,191.84,47.18926249]
[1736416344921,2.6072,191.89,191.84,44.58156249]
[1736416345234,2.6069,191.91,191.85,6.68857423]
[1736416346247,2.6069,191.91,191.87,2.6073]
[1736416346432,2.6069,191.91,191.87,9.29587423]
[1736416347934,2.6069,191.9,191.86,2.6074]
[1736416350254,2.6068,191.91,191.87,2.6073]
[1736416350433,6.68857423,191.92,191.85,6.68857423]
[1736416350832,2.607,191.9,191.85,9.29607423]
[1736416351136,2.607,191.9,191.85,6.68857423]
[1736416351732,6.68857423,191.92,191.85,6.68857423]
[1736416353132,2.6069,191.9,191.86,2.6074]
[1736416355333,2.6069,191.9,191.87,6.68857423]
[1736416359934,2.6069,191.9,191.86,2.6074]
[1736416366049,2.6066,191.93,191.88,2.6071]
[1736416366349,2.6066,191.93,191.87,6.68857423]
[1736416366655,2.6066,191.93,191.89,6.68857423]
[1736416367053,2.6066,191.93,191.89,9.29557423]
[1736416370155,3.1167,192.01,191.91,6.68857423]
[1736416370356,2.6063,191.95,191.91,9.29537423]
[1736416370559,6.68857423,191.99,191.93,6.68857423]
[1736416370758,2.6059,191.98,191.93,9.29497423]
[1736416371754,2.606,191.97,191.93,9.29497423]
[1736416372366,2.606,191.97,191.93,6.68857423]
[1736416376060,2.606,191.97,191.93,9.29507423]
[1736416386068,6.68857423,191.97,191.87,1.6247]
[1736416386470,6.68857423,191.97,191.89,6.68857423]
[1736416386664,2.6063,191.95,191.89,9.29557423]
[1736416386863,6.68857423,191.97,191.89,2.607]
[1736416387069,6.68857423,191.95,191.87,1.6247]
[1736416387263,6.68857423,191.93,191.87,8.31327423]
[1736416387466,6.68857423,191.93,191.88,2.6071]
[1736416387467,2.6068,191.92,191.88,2.6071]
[1736416387665,2.6068,191.92,191.87,8.31327423]
[1736416388871,6.68857423,191.91,191.85,6.68857423]
[1736416389271,2.607,191.9,191.85,6.68857423]
[1736416389478,1.5117,192.0,191.85,6.68857423]
[1736416389668,6.68857423,191.92,191.85,6.68857423]
[1736416389972,6.68857423,191.92,191.87,6.68857423]
[1736416390191,6.68857423,191.94,191.87,6.68857423]
[1736416390563,6.68857423,191.94,191.88,2.6071]
[1736416391975,9.29537423,191.92,191.87,6.68857423]
[1736416392271,6.68857423,191.92,191.85,6.68857423]
[1736416392480,6.68857423,191.9,191.83,6.68857423]
[1736416393103,2.6073,191.88,191.83,6.68857423]
[1736416393267,6.68857423,191.9,191.83,2.6078]
[1736416393577,2.6073,191.88,191.83,9.29637423]
[1736416394881,6.68857423,191.9,191.83,9.29637423]
[1736416395078,6.68857423,191.88,191.81,6.68857423]
[1736416395283,6.68857423,191.86,191.81,6.68857423]
[1736416395473,2.6078,191.84,191.79,51.28413583]
[1736416395785,2.6078,191.84,191.79,53.89253583]
[1736416396593,6.68857423,191.86,191.79,51.28413583]
[1736416396784,2.6076,191.85,191.8,2.6082]
[1736416397780,6.68857423,191.88,191.82,2.608]
[1736416398378,2.6075,191.87,191.82,2.608]
[1736416398582,6.68857423,191.88,191.82,2.608]
[1736416399075,6.68857423,191.88,191.83,6.68857423]
[1736416399778,9.29587423,191.88,191.84,2.6076]
[1736416400779,2.6073,191.87,191.83,9.29637423]
[1736416401583,2.6073,191.87,191.83,6.68857423]
[1736416402487,6.68857423,191.86,191.81,6.68857423]
[1736416404180,2.6078,191.84,191.81,6.68857423]
[1736416405882,6.68857423,191.9,191.83,6.68857423]
[1736416406400,6.68857423,191.9,191.85,6.68857423]
[1736416407187,6.68857423,191.9,191.85,2.6076]
[1736416407784,7.59236945,191.98,191.81,6.68857423]
[1736416407785,6.68857423,191.88,191.81,6.68857423]
[1736416407988,6.68857423,191.88,191.82,2.608]
[1736416408382,2.6076,191.86,191.82,2.608]
[1736416411291,2.6076,191.86,191.81,6.68857423]
[1736416411494,2.6076,191.86,191.81,9.29667423]
[1736416412490,2.6077,191.85,191.81,9.29667423]
[1736416412688,6.68857423,191.86,191.79,51.28413583]
[1736416412897,6.68857423,191.84,191.79,44.5955616]
[1736416413087,2.6082,191.81,191.77,6.68857423]
[1736416414103,6.68857423,191.82,191.75,8.19327423]
[1736416414488,2.6084,191.79,191.75,2.6089]
[1736416415695,2.6083,191.8,191.74,8.20097423]
[1736416415914,6.68857423,191.82,191.76,9.29737423]
[1736416416492,2.6082,191.81,191.76,9.29737423]
[1736416418609,9.29657423,191.82,191.77,2.6086]
[1736416418794,9.29657423,191.82,191.78,6.68857423]
[1736416418795,2.608,191.82,191.78,6.68857423]
[1736416420309,2.6079,191.83,191.79,2.6084]
[1736416420493,6.68857423,191.86,191.8,6.68857423]
[1736416421505,9.29617423,191.86,191.8,6.68857423]
[1736416422498,9.29617423,191.86,191.82,2.6079]
[1736416423901,2.6073,191.87,191.83,2.6078]
[1736416424995,2.6075,191.86,191.82,9.29657423]
[1736416425201,6.68857423,191.88,191.82,6.68857423]
[1736416425597,2.6078,191.84,191.8,9.29677423]
[1736416432409,6.68857423,191.84,191.78,6.68857423]
[1736416432707,6.68857423,191.82,191.76,6.68857423]
[1736416433710,2.6083,191.8,191.76,6.68857423]
[1736416434606,2.6083,191.8,191.76,9.29727423]
[1736416437319,6.68857423,191.79,191.71,7.18777139]
[1736416437613,6.68857423,191.79,191.73,6.68857423]
[1736416438312,2.6089,191.76,191.73,6.68857423]
[1736416438916,2.6089,191.76,191.71,9.29807423]
[1736416439509,2.609,191.75,191.71,9.29807423]
[1736416440208,6.68857423,191.77,191.71,9.29807423]
[1736416440415,2.6089,191.76,191.71,9.29807423]
[1736416441427,6.68857423,191.77,191.71,6.68857423]
[1736416442518,9.29737423,191.77,191.72,2.6092]
[1736416444113,9.29737423,191.77,191.71,6.68857423]
[1736416444417,2.6088,191.77,191.73,9.29777423]
[1736416445839,6.68857423,191.77,191.69,1.5093]
[1736416446115,6.68857423,191.77,191.69,8.19787423]
[1736416446515,6.68857423,191.77,191.69,6.68857423]
[1736416446707,2.6092,191.74,191.7,2.6096]
[1736416446910,2.6092,191.74,191.69,6.68857423]
[1736416447416,2.6092,191.73,191.69,9.29827423]
[1736416448113,2.6092,191.73,191.69,6.68857423]
[1736416448325,6.68857423,191.73,191.68,2.6099]
[1736416448536,6.68857423,191.73,191.67,6.68857423]
[1736416448714,6.68857423,191.75,191.69,6.68857423]
[1736416449585,9.29787423,191.73,191.67,6.68857423]
[1736416449720,2.6093,191.73,191.67,6.68857423]
[1736416450218,2.6093,191.73,191.68,2.6098]
[1736416451114,2.6094,191.72,191.68,2.6098]
[1736416451317,6.68857423,191.75,191.67,9.29857423]
[1736416451516,6.68857423,191.73,191.67,9.29857423]
[1736416451916,6.68857423,191.73,191.67,2.61]
[1736416453016,6.68857423,191.73,191.67,9.29857423]
[1736416453217,2.6096,191.71,191.67,9.29857423]
[1736416453416,2.6096,191.71,191.67,2.61]
[1736416455316,2.6094,191.72,191.68,6.68857423]
[1736416455522,2.6094,191.72,191.68,9.29847423]
[1736416464622,2.6095,191.71,191.68,9.29847423]
[1736416468526,2.6095,191.71,191.68,6.68857423]
[1736416473834,2.61,191.68,191.64,53.92775011]
[1736416474036,6.68857423,191.68,191.63,28.75108556]
[1736416475033,2.6103,191.66,191.62,6.68857423]
[1736416478430,6.68857423,191.68,191.6,9.29947423]
[1736416478633,5.2179,191.76,191.6,6.68857423]
[1736416478847,2.6102,191.66,191.62,6.68857423]
[1736416479028,5.2179,191.76,191.62,6.68857423]
[1736416479234,6.68857423,191.7,191.64,6.68857423]
[1736416479438,2.61,191.68,191.64,6.68857423]
[1736416479733,1.5881,191.78,191.64,6.68857423]
[1736416479940,6.68857423,191.71,191.64,6.68857423]
[1736416480150,2.6097,191.7,191.66,2.6101]
[1736416480738,2.6097,191.7,191.66,9.29867423]
[1736416486133,6.68857423,191.71,191.66,9.29867423]
[1736416486354,2.6098,191.69,191.66,9.29867423]
[1736416490352,2.6098,191.69,191.65,2.6103]
[1736416490947,2.6098,191.69,191.65,4.082]
[1736416493558,2.6099,191.68,191.65,1.4717]
[1736416494776,6.68857423,191.71,191.59,1.5699]
[1736416494945,6.68857423,191.69,191.62,9.29917423]
[1736416495744,1.5881,191.78,191.62,6.68857423]
[1736416495745,2.6103,191.65,191.62,6.68857423]
[1736416496551,2.6103,191.65,191.61,2.6108]
[1736416500353,2.61,191.67,191.63,2.6105]
[1736416500560,5.2176,191.77,191.64,6.68857423]
[1736416500748,6.68857423,191.71,191.64,6.68857423]
[1736416501155,2.61,191.68,191.64,6.68857423]
[1736416501559,6.68857423,191.67,191.62,6.68857423]
[1736416501759,6.68857423,191.67,191.6,9.29947423]
[1736416502372,2.6104,191.65,191.6,9.29947423]
[1736416502567,6.68857423,191.67,191.6,9.29947423]
[1736416502964,2.6104,191.65,191.6,9.29947423]
[1736416503456,6.68857423,191.67,191.6,9.29947423]
[1736416503760,2.6105,191.64,191.6,9.29947423]
[1736416506258,6.68857423,191.67,191.6,6.68857423]
[1736416506457,2.6103,191.66,191.61,2.6108]
[1736416511162,6.68857423,191.67,191.61,2.6108]
[1736416511462,2.6103,191.65,191.61,2.6108]
[1736416512257,2.6103,191.65,191.59,3.1392]
[1736416512258,6.68857423,191.67,191.53,7.25361885]
[1736416512457,2.6108,191.62,191.57,2.6114]
[1736416512663,2.6108,191.62,191.57,6.68857423]
[1736416513764,2.6108,191.62,191.58,2.6112]
[1736416514420,1.6101,191.72,191.59,6.68857423]
[1736416514580,6.68857423,191.67,191.61,6.68857423]
[1736416515673,2.6103,191.66,191.62,2.6107]
[1736416517767,6.68857423,191.67,191.62,2.6107]
[1736416517973,2.6103,191.65,191.62,2.6107]
[1736416519567,2.6105,191.64,191.59,6.68857423]
[1736416520066,6.68857423,191.65,191.59,6.68857423]
[1736416520264,2.6107,191.63,191.57,6.68857423]
[1736416520775,6.68857423,191.65,191.58,2.6112]
[1736416521370,2.6107,191.62,191.58,2.6112]
[1736416523574,2.6106,191.63,191.59,9.29967423]
[1736416524376,2.6105,191.64,191.6,2.611]
[1736416525989,6.68857423,191.65,191.61,9.29937423]
[1736416525990,2.6104,191.65,191.61,9.29937423]
[1736416527476,6.68857423,191.7,191.63,6.68857423]
[1736416528174,2.61,191.68,191.63,6.68857423]
[1736416528789,2.6098,191.69,191.65,2.6102]
[1736416529176,2.6098,191.69,191.63,6.68857423]
[1736416529371,2.6098,191.69,191.66,2.6102]
[1736416529771,2.6098,191.69,191.63,6.68857423]
[1736416529971,2.6098,191.69,191.65,2.6103]
[1736416530775,2.61,191.68,191.65,2.6103]
[1736416531889,2.61,191.68,191.66,2.6102]
[1736416534375,2.61,191.68,191.65,9.29887423]
[1736416534878,2.61,191.68,191.65,2.6103]
[1736416535380,2.61,191.68,191.64,2.6104]
[1736416535579,2.61,191.68,191.63,6.68857423]
[1736416536208,2.61,191.68,191.64,2.6104]
[1736416536681,6.68857423,191.71,191.64,2.6104]
[1736416536880,2.61,191.67,191.64,2.6104]
[1736416542086,2.61,191.67,191.63,6.68857423]
[1736416542394,2.61,191.67,191.63,9.29907423]
[1736416549691,2.61,191.67,191.63,6.68857423]
[1736416549914,2.61,191.67,191.64,2.6104]
[1736416550588,6.68857423,191.71,191.64,2.6104]
[1736416550797,2.6099,191.68,191.64,2.6104]
[1736416555711,5.2169,191.79,191.65,6.68857423]
[1736416556012,6.68857423,191.76,191.69,6.68857423]
[1736416556403,6.68857423,191.76,191.69,9.29837423]
[1736416557409,2.6092,191.74,191.69,6.68857423]
[1736416558106,2.6092,191.74,191.71,2.6095]
[1736416561414,7.57314308,191.86,191.73,6.68857423]
[1736416561415,6.68857423,191.81,191.73,6.68857423]
[1736416561618,6.68857423,191.81,191.76,6.68857423]
[1736416562013,2.6084,191.79,191.76,9.29727423]
[1736416563406,6.68857423,191.81,191.76,9.29727423]
[1736416563714,2.6083,191.8,191.76,9.29727423]
[1736416565414,2.6081,191.82,191.76,6.68857423]
[1736416566213,6.68857423,191.83,191.77,2.6087]
[1736416566412,2.6082,191.81,191.77,2.6087]
[1736416567909,2.6082,191.81,191.76,9.29737423]
[1736416568913,6.68857423,191.79,191.7,1.5555]
[1736416569220,6.68857423,191.75,191.69,44.61897563]
[1736416570110,2.6091,191.74,191.7,2.6095]
[1736416570329,6.68857423,191.71,191.66,29.0144754]
[1736416570510,6.68857423,191.71,191.64,6.68857423]
[1736416570812,2.6098,191.69,191.64,6.68857423]
[1736416571816,2.6098,191.69,191.64,9.29897423]
[1736416572012,6.68857423,191.71,191.64,9.29897423]
[1736416572216,2.6096,191.7,191.64,9.29897423]
[1736416572711,6.68857423,191.71,191.64,9.29897423]
[1736416572912,2.6098,191.69,191.64,9.29897423]
[1736416573918,9.29837423,191.69,191.64,9.29897423]
[1736416574219,2.6101,191.67,191.62,2.6106]
[1736416574913,6.68857423,191.69,191.61,6.68857423]
[1736416575121,2.6099,191.68,191.63,2.6106]
[1736416576317,2.6099,191.68,191.63,9.29917423]
[1736416577018,6.68857423,191.69,191.57,44.64327607]
[1736416577221,6.68857423,191.69,191.61,9.29927423]
[1736416578811,2.6101,191.67,191.62,2.6107]
[1736416579512,2.61,191.68,191.62,6.68857423]
[1736416580615,6.68857423,191.69,191.64,2.6103]
[1736416580911,6.68857423,191.69,191.62,6.68857423]
[1736416581116,2.6101,191.67,191.62,2.6107]
[1736416581416,9.29867423,191.67,191.62,2.6107]
[1736416581819,2.6102,191.66,191.62,2.6107]
[1736416583512,1.5948,191.73,191.62,9.29927423]
[1736416583721,2.6101,191.67,191.62,9.29927423]
[1736416584612,6.68857423,191.68,191.62,9.29927423]
[1736416584820,2.6102,191.66,191.62,9.29927423]
[1736416587120,6.68857423,191.69,191.62,9.29927423]
[1736416587316,1.5948,191.73,191.64,9.29897423]
[1736416587524,6.68857423,191.7,191.64,9.29897423]
[1736416587710,2.6099,191.69,191.64,9.29897423]
[1736416588019,6.68857423,191.7,191.64,9.29897423]
[1736416588623,2.6099,191.68,191.64,9.29897423]
[1736416589011,6.68857423,191.7,191.64,6.68857423]
[1736416589217,2.6097,191.7,191.66,6.68857423]
[1736416590220,2.6097,191.7,191.66,9.29877423]
[1736416592225,6.68857423,191.72,191.66,9.29877423]
[1736416592421,2.6098,191.69,191.66,9.29877423]
[1736416593822,2.6098,191.69,191.66,2.6102]
[1736416594024,2.6098,191.69,191.65,9.29887423]
[1736416594221,2.6098,191.69,191.65,2.6103]
[1736416595520,6.68857423,191.7,191.57,44.64327607]
[1736416595827,2.61,191.68,191.63,9.29907423]
[1736416596016,6.68857423,191.7,191.63,9.29907423]
[1736416596218,2.6102,191.67,191.63,6.68857423]
[1736416597225,2.6102,191.66,191.62,2.6107]
[1736416597429,2.6102,191.66,191.62,9.29927423]
[1736416598236,2.6102,191.66,191.62,6.68857423]
[1736416598436,2.6103,191.65,191.61,2.6108]
[1736416600728,2.6103,191.65,191.6,9.29947423]
[1736416600932,2.6103,191.65,191.6,6.68857423]
[1736416601329,2.6103,191.65,191.61,2.6108]
[1736416601832,2.6105,191.64,191.57,44.64327607]
[1736416602040,6.68857423,191.66,191.59,9.29957423]
[1736416602537,2.6105,191.64,191.6,2.611]
[1736416613346,6.68857423,191.62,191.55,17.01229308]
[1736416613552,6.68857423,191.62,191.55,10.32371885]
[1736416613946,2.6112,191.59,191.55,10.32371885]
[1736416614347,2.6112,191.59,191.55,3.0701]
[1736416616254,6.68857423,191.58,191.49,29.0144754]
[1736416616454,6.68857423,191.56,191.52,2.612]
[1736416617553,2.6114,191.57,191.52,9.30057423]
[1736416618647,2.6116,191.56,191.52,6.68857423]
[1736416620052,2.6114,191.57,191.52,9.30057423]
[1736416620746,9.29987423,191.58,191.52,9.30057423]
[1736416621152,9.29987423,191.58,191.53,2.6119]
[1736416621858,9.29987423,191.58,191.52,6.68857423]
[1736416621859,6.68857423,191.6,191.54,6.68857423]
[1736416622055,1.4855,191.68,191.58,6.68857423]
[1736416622282,6.68857423,191.65,191.58,6.68857423]
[1736416622474,6.68857423,191.63,191.58,6.68857423]
[1736416624057,9.29917423,191.63,191.58,6.68857423]
[1736416624478,6.68857423,191.61,191.56,6.68857423]
[1736416624655,6.68857423,191.57,191.52,6.68857423]
[1736416625261,2.6113,191.58,191.53,2.6119]
[1736416628160,2.6111,191.6,191.54,6.68857423]
[1736416628359,6.68857423,191.63,191.56,6.68857423]
[1736416628861,2.6109,191.61,191.57,2.6113]
[1736416629257,6.68857423,191.63,191.58,6.68857423]
[1736416629764,6.68857423,191.65,191.59,2.6111]
[1736416631064,2.6106,191.63,191.59,2.6111]
[1736416631958,9.29917423,191.63,191.59,2.6111]
[1736416632267,2.6107,191.62,191.59,2.6111]
[1736416636365,2.6107,191.62,191.58,9.29977423]
[1736416636664,2.6107,191.62,191.58,2.6112]
[1736416637670,6.68857423,191.63,191.56,6.68857423]
[1736416637867,2.611,191.6,191.56,2.6115]
[1736416638165,6.68857423,191.61,191.54,6.68857423]
[1736416638469,2.6111,191.59,191.54,9.30037423]
[1736416639173,2.6113,191.58,191.54,6.68857423]
[1736416639462,6.68857423,191.59,191.52,6.68857423]
[1736416639766,6.68857423,191.57,191.5,35.70304963]
[1736416639963,2.6116,191.56,191.5,35.70304963]
[1736416640163,6.68857423,191.57,191.52,6.68857423]
[1736416640362,6.68857423,191.59,191.52,6.68857423]
[1736416640768,6.68857423,191.59,191.54,6.68857423]
[1736416640964,6.68857423,191.61,191.54,6.68857423]
[1736416641180,2.611,191.6,191.56,2.6115]
[1736416641664,2.611,191.6,191.54,6.68857423]
[1736416642467,6.68857423,191.59,191.54,6.68857423]
[1736416643071,6.68857423,191.59,191.55,2.6116]
[1736416643467,2.611,191.6,191.54,6.68857423]
[1736416645066,2.611,191.6,191.56,2.6115]
[1736416645566,6.68857423,191.63,191.56,6.68857423]
[1736416646869,2.6105,191.64,191.59,2.611]
[1736416647072,9.29907423,191.64,191.59,2.611]
[1736416650368,6.68857423,191.64,191.59,2.611]
[1736416650670,9.29937423,191.62,191.57,2.6113]
[1736416650870,9.29937423,191.62,191.56,6.68857423]
[1736416651574,2.6108,191.62,191.56,6.68857423]
[1736416651776,9.29937423,191.62,191.56,6.68857423]
[1736416652278,2.6108,191.62,191.58,2.6112]
[1736416656580,9.29927423,191.63,191.58,2.6112]
[1736416656781,1.4855,191.68,191.58,6.68857423]
[1736416656971,6.68857423,191.66,191.61,2.6109]
[1736416657177,9.29877423,191.66,191.61,2.6109]
[1736416657876,2.6101,191.67,191.63,2.6106]
[1736416658073,6.68857423,191.66,191.6,6.68857423]
[1736416659175,9.29877423,191.66,191.62,2.6107]
[1736416659471,2.6102,191.66,191.62,2.6107]
[1736416659675,9.29877423,191.66,191.62,2.6107]
[1736416660089,9.29907423,191.64,191.6,2.611]
[1736416660686,2.6106,191.63,191.59,2.6111]
[1736416660989,6.68857423,191.62,191.56,6.68857423]
[1736416661189,6.68857423,191.62,191.54,17.04749308]
[1736416661384,1.5839,191.72,191.54,9.79387423]
[1736416661688,6.68857423,191.65,191.58,6.68857423]
[1736416662085,9.29887423,191.65,191.61,2.6108]
[1736416662889,6.68857423,191.65,191.58,6.68857423]
[1736416663091,9.29867423,191.67,191.63,2.6106]
[1736416663393,9.29867423,191.67,191.6,6.68857423]
[1736416663890,9.29867423,191.67,191.62,2.6107]
[1736416669192,6.68857423,191.65,191.62,2.6107]
[1736416674994,6.68857423,191.65,191.63,2.6106]
[1736416677300,1.5839,191.72,191.6,6.68857423]
[1736416677500,6.68857423,191.7,191.62,6.68857423]
[1736416677895,1.5839,191.72,191.62,6.68857423]
[1736416678098,6.68857423,191.7,191.62,6.68857423]
[1736416678297,9.29827423,191.7,191.62,6.68857423]
[1736416679000,6.68857423,191.68,191.65,2.6102]
[1736416683407,6.68857423,191.68,191.62,6.68857423]
[1736416683707,6.68857423,191.68,191.66,2.6102]
[1736416684501,1.5839,191.72,191.62,6.68857423]
[1736416684705,1.5839,191.72,191.57,7.25361885]
[1736416684706,6.68857423,191.73,191.66,6.68857423]
[1736416685304,9.29787423,191.73,191.68,2.6099]
[1736416685907,6.68857423,191.71,191.68,2.6099]
[1736416686109,6.68857423,191.69,191.66,2.6101]
[1736416686600,6.68857423,191.69,191.62,6.68857423]
[1736416686601,9.29837423,191.69,191.65,2.6103]
[1736416687407,2.6098,191.69,191.65,2.6103]
[1736416687604,6.68857423,191.69,191.65,2.6103]
[1736416688807,9.29837423,191.69,191.65,2.6103]
[1736416690611,2.6099,191.68,191.64,2.6104]
[1736416691112,6.68857423,191.69,191.64,2.6104]
[1736416691311,9.29837423,191.69,191.64,2.6104]
[1736416693315,6.68857423,191.67,191.64,2.6104]
[1736416694614,6.68857423,191.67,191.6,9.76117423]
[1736416694816,6.68857423,191.67,191.65,2.6103]
[1736416699523,9.29837423,191.69,191.65,2.6103]
[1736416699925,6.68857423,191.69,191.66,2.6101]
[1736416700124,2.6097,191.7,191.6,3.0726]
[1736416700125,1.5719,191.79,191.64,6.68857423]
[1736416700425,2.6091,191.74,191.68,2.6099]
[1736416700723,6.68857423,191.72,191.68,2.6099]
[1736416701317,6.68857423,191.72,191.64,6.68857423]
[1736416701318,2.6091,191.74,191.7,2.6095]
[1736416701616,1.5719,191.79,191.68,6.68857423]
[1736416701617,6.68857423,191.75,191.68,6.68857423]
[1736416702020,6.68857423,191.75,191.7,2.6096]
[1736416702214,6.68857423,191.75,191.68,6.68857423]
[1736416702724,6.68857423,191.75,191.71,2.6094]
[1736416704523,9.29767423,191.75,191.71,2.6094]
[1736416705324,6.68857423,191.73,191.71,2.6094]
[1736416723744,2.609,191.75,191.71,2.6094]
[1736416723942,6.68857423,191.74,191.71,2.6094]
[1736416725043,2.609,191.75,191.71,2.6094]
[1736416725248,6.68857423,191.74,191.71,2.6094]
[1736416728251,6.68857423,191.74,191.67,6.68857423]
[1736416728464,6.68857423,191.74,191.71,2.6094]
[1736416730862,2.6088,191.76,191.73,2.6092]
[1736416731155,6.68857423,191.75,191.73,2.6092]
[1736416732257,6.68857423,191.75,191.74,2.6091]
[1736416733157,6.68857423,191.77,191.75,2.6089]
[1736416734051,9.29727423,191.77,191.74,2.609]
[1736416735756,2.6087,191.77,191.74,2.609]
[1736416735953,6.68857423,191.76,191.74,2.609]
[1736416737357,2.6081,191.82,191.77,2.6086]
[1736416737554,6.68857423,191.81,191.77,2.6086]
[1736416739053,9.29677423,191.81,191.77,2.6086]
[1736416739461,6.68857423,191.79,191.77,2.6086]
[1736416740960,6.68857423,191.79,191.76,2.6088]
[1736416745562,9.29677423,191.81,191.76,2.6088]
[1736416746069,6.68857423,191.81,191.78,2.6085]
[1736416748162,143.91249667,191.94,191.77,6.68857423]
[1736416748361,6.68857423,191.84,191.8,2.6082]
[1736416749067,2.6074,191.87,191.82,2.6079]
[1736416749263,6.68857423,191.85,191.82,2.6079]
[1736416750963,6.68857423,191.83,191.77,6.68857423]
[1736416751781,6.68857423,191.83,191.79,2.6083]
[1736416753564,6.68857423,191.83,191.8,2.6083]
[1736416754472,6.68857423,191.85,191.82,2.608]
[1736416756768,9.29617423,191.85,191.81,2.6081]
[1736416758475,6.68857423,191.84,191.81,2.6081]
[1736416768086,6.68857423,191.82,191.73,6.68857423]
[1736416768275,6.68857423,191.8,191.73,6.68857423]
[1736416768675,6.68857423,191.8,191.77,2.6086]
[1736416771988,6.68857423,191.78,191.72,1.5869]
[1736416772184,6.68857423,191.78,191.71,8.29257423]
[1736416772681,6.68857423,191.74,191.71,2.6095]
[1736416773183,6.68857423,191.74,191.72,2.6093]
[1736416776191,9.29737423,191.76,191.72,2.6093]
[1736416788106,2.6088,191.76,191.72,2.6093]
[1736416789403,6.68857423,191.75,191.72,2.6093]
[1736416794429,6.68857423,191.75,191.66,3.2067]
[1736416794608,2.6091,191.74,191.68,6.68857423]
[1736416796108,2.6091,191.74,191.7,2.6096]
[1736416796503,6.68857423,191.75,191.7,2.6096]
[1736416796710,9.29757423,191.75,191.7,2.6096]
[1736416797307,9.29757423,191.75,191.7,9.29817423]
[1736416800618,6.68857423,191.75,191.71,2.6094]
[1736416800814,1.4771,191.83,191.72,6.68857423]
[1736416801015,0.80305079,191.82,191.74,6.68857423]
[1736416801211,9.29657423,191.82,191.77,2.6087]
[1736416805214,4.38,191.87,191.8,6.68857423]
[1736416805419,6.68857423,191.86,191.8,6.68857423]
[1736416805818,9.29617423,191.86,191.81,2.6081]
[1736416806320,6.68857423,191.86,191.81,2.6081]
[1736416806516,2.6076,191.85,191.81,2.6081]
[1736416807216,2.6077,191.84,191.81,2.6081]
[1736416807921,9.29627423,191.84,191.81,2.6081]
[1736416809731,6.68857423,191.84,191.81,2.6081]
[1736416810926,9.29607423,191.86,191.82,2.6079]
[1736416811928,6.68857423,191.86,191.82,2.6079]
[1736416812123,2.6076,191.85,191.82,2.6079]
[1736416813528,2.6076,191.85,191.78,6.68857423]
[1736416813529,2.6076,191.85,191.81,2.6081]
[1736416817923,2.6074,191.87,191.8,6.68857423]
[1736416818527,2.6074,191.87,191.82,2.608]
[1736416819326,2.6074,191.87,191.83,2.6078]
[1736416821331,6.68857423,191.86,191.73,1.5846]
[1736416821542,2.6077,191.85,191.79,6.68857423]
[1736416822834,4.38,191.9,191.79,6.68857423]
[1736416823025,2.6074,191.87,191.83,2.6079]
[1736416823231,9.29597423,191.87,191.83,2.6079]
[1736416824835,9.29597423,191.87,191.81,6.68857423]
[1736416824836,8.19607423,191.92,191.85,6.68857423]
[1736416825138,6.68857423,191.92,191.85,6.68857423]
[1736416825730,9.29527423,191.92,191.88,2.6072]
[1736416826036,6.68857423,191.92,191.85,6.68857423]
[1736416826434,2.6069,191.91,191.86,2.6074]
[1736416826642,6.68857423,191.9,191.86,2.6074]
[1736416826839,6.68857423,191.9,191.79,3.1088]
[1736416827141,6.68857423,191.9,191.83,6.68857423]
[1736416827335,6.68857423,191.9,191.79,3.1088]
[1736416827336,6.68857423,191.88,191.79,3.1088]
[1736416827530,6.68857423,191.86,191.8,6.68857423]
[1736416828145,9.29617423,191.86,191.81,2.608]
[1736416828487,9.29617423,191.86,191.79,3.1088]
[1736416828488,6.68857423,191.86,191.79,3.1088]
[1736416828652,4.38,191.94,191.79,3.1088]
[1736416828653,9.29627423,191.84,191.79,4.2108]
[1736416828935,9.29627423,191.84,191.79,1.6025]
[1736416830130,9.29627423,191.84,191.79,2.6084]
[1736416830335,2.6079,191.83,191.79,2.6084]
[1736416830537,4.38,191.94,191.79,2.6084]
[1736416830733,6.68857423,191.84,191.79,2.6084]
[1736416831339,9.29627423,191.84,191.79,2.6084]
[1736416833142,6.68857423,191.82,191.76,44.62591746]
[1736416833346,9.29657423,191.82,191.78,2.6085]
[1736416836054,6.68857423,191.82,191.78,2.6085]
[1736416837044,2.6079,191.83,191.79,2.6084]